fUST/lending_fUST_20250610
["ID","MTS","AMOUNT","RATE_DAILY","PERIOD"]
[365152911,1749498634721,-460.0,0.00021917,4]
[365152912,1749498634731,-500.0,0.00021917,2]
[365152913,1749498634741,-1377.98,0.00021917,4]
[365152914,1749498634750,-668.98,0.00021917,4]
[365152915,1749498634760,-460.0,0.00021917,4]
[365152916,1749498634902,-460.0,0.00021917,4]
[365152917,1749498634913,-460.0,0.00021917,4]
[365152918,1749498634923,-460.0,0.00021917,4]
[365152919,1749498634932,-460.0,0.00021917,4]
[365152920,1749498634942,-460.0,0.00021917,4]
[365152921,1749498634951,-1453.8,0.00021917,4]
[365152922,1749498634961,-10022.59,0.00021917,4]
[365152923,1749498634970,-460.0,0.00021917,4]
[365152924,1749498634981,-460.0,0.00021917,4]
[365152925,1749498634990,-632.61,0.00021917,4]
[365152926,1749498635000,-1517.16,0.00021917,4]
[365152927,1749498635010,-460.0,0.00021917,4]
[365152928,1749498635019,-1447.19,0.00021917,4]
[365152929,1749498635029,-289.49243421,0.0002194,2]
[365152930,1749498635039,-174.0,0.00022,2]
[365152931,1749498635048,-1402.2915333,0.00022003,6]
[365152932,1749498635058,-1402.2915333,0.00022107,6]
[365152933,1749498635068,-247.59066873,0.00022168,2]
[365152934,1749498635078,-207.4,0.00022171,2]
[365152935,1749498635088,-880.02,0.00022181,3]
[365152936,1749498635098,-674.15,0.0002219,4]
[365152937,1749498635108,-460.0,0.0002219,4]
[365152938,1749498635117,-460.0,0.0002219,4]
[365152939,1749498635127,-596.62,0.0002219,4]
[365152940,1749498635136,-537.0,0.0002219,4]
[365152941,1749498635145,-885.92,0.0002219,4]
[365152942,1749498635155,-460.0,0.0002219,4]
[365152943,1749498635164,-2130.73,0.0002219,4]
[365152944,1749498635179,-747.12,0.0002219,4]
[365152945,1749498635190,-460.0,0.00022191,4]
[365152946,1749498635200,-460.0,0.00022191,4]
[365152947,1749498635211,-460.0,0.00022191,2]
[365152948,1749498635222,-460.0,0.00022191,4]
[365152949,1749498635232,-460.0,0.00022191,4]
[365152950,1749498635241,-460.0,0.00022191,4]
[365152951,1749498635252,-460.0,0.00022191,4]
[365152952,1749498635262,-1022.01,0.00022191,4]
[365152953,1749498635272,-1579.35,0.00022191,4]
[365152954,1749498635282,-1257.22,0.00022191,4]
[365152955,1749498635293,-582.38,0.00022191,4]
[365152956,1749498635303,-460.0,0.00022191,4]
[365152957,1749498635313,-460.0,0.00022191,4]
[365152958,1749498635323,-460.0,0.00022191,4]
[365152959,1749498635332,-193.71447671,0.00022191,4]
[365152960,1749498635343,-575.01405744,0.00022191,4]
[365152961,1749498635353,-1377.98,0.00022191,4]
[365152962,1749498635363,-668.98,0.00022191,4]
[365152963,1749498635372,-460.0,0.00022191,4]
[365152964,1749498635383,-460.0,0.00022191,4]
[365152965,1749498635392,-460.0,0.00022191,4]
[365152966,1749498635402,-460.0,0.00022191,4]
[365152967,1749498635411,-460.0,0.00022191,4]
[365152968,1749498635421,-460.0,0.00022191,4]
[365152969,1749498635430,-1453.8,0.00022191,4]
[365152970,1749498635439,-10022.59,0.00022191,4]
[365152971,1749498635449,-460.0,0.00022191,4]
[365152972,1749498635459,-460.0,0.00022191,4]
[365152973,1749498635468,-632.61,0.00022191,4]
[365152974,1749498635478,-1517.16,0.00022191,4]
[365152975,1749498635487,-460.0,0.00022191,4]
[365152976,1749498635497,-1447.19,0.00022191,4]
[365152977,1749498635506,-1402.2915333,0.0002221,6]
[365152978,1749498635515,-1402.2915333,0.00022314,7]
[365152979,1749498635525,-352.10244812,0.0002238,2]
[365152980,1749498635534,-1402.2915333,0.00022417,7]
[365152981,1749498635545,-2323.1,0.00022418,2]
[365152982,1749498635555,-674.15,0.00022464,4]
[365152983,1749498635564,-460.0,0.00022464,4]
[365152984,1749498635574,-460.0,0.00022464,4]
[365152985,1749498635583,-596.62,0.00022464,4]
[365152986,1749498635594,-537.0,0.00022464,4]
[365152987,1749498635604,-885.92,0.00022464,4]
[365152988,1749498635614,-460.0,0.00022464,4]
[365152989,1749498635624,-2130.73,0.00022464,4]
[365152990,1749498635635,-747.12,0.00022464,4]
[365152991,1749498635644,-460.0,0.00022465,4]
[365152992,1749498635654,-454.54431858,0.00022465,4]
[365152993,1749498635664,-460.0,0.00022465,2]
[365152994,1749498635674,-460.0,0.00022465,4]
[365152995,1749498635684,-460.0,0.00022465,4]
[365152996,1749498635693,-460.0,0.00022465,4]
[365152997,1749498635703,-460.0,0.00022465,4]
[365152998,1749498635713,-1022.01,0.00022465,4]
[365152999,1749498635722,-400.0,0.00022465,2]
[365153000,1749498635732,-400.0,0.00022465,2]
[365153001,1749498635742,-200.0,0.00022465,2]
[365153002,1749498635752,-1579.35,0.00022465,4]
[365153003,1749498635762,-1257.22,0.00022465,4]
[365153004,1749498635772,-582.38,0.00022465,4]
[365153005,1749498635782,-460.0,0.00022465,4]
[365153006,1749498635794,-207.16572745,0.00022465,4]
[365153007,1749498635804,-460.0,0.00022465,4]
[365153008,1749498635814,-1377.98,0.00022465,4]
[365153009,1749498635823,-668.98,0.00022465,4]
[365153010,1749498635833,-460.0,0.00022465,4]
[365153011,1749498635843,-460.0,0.00022465,4]
[365153012,1749498635854,-460.0,0.00022465,4]
[365153013,1749498635864,-460.0,0.00022465,4]
[365153014,1749498635875,-460.0,0.00022465,4]
[365153015,1749498635884,-460.0,0.00022465,4]
[365153016,1749498635894,-1453.8,0.00022465,4]
[365153017,1749498635904,-10022.59,0.00022465,4]
[365153018,1749498635914,-460.0,0.00022465,4]
[365153019,1749498635924,-460.0,0.00022465,4]
[365153020,1749498635934,-632.61,0.00022465,4]
[365153021,1749498635944,-1517.16,0.00022465,4]
[365153022,1749498635954,-460.0,0.00022465,4]
[365153023,1749498635963,-1447.19,0.00022465,4]
[365153024,1749498635973,-1402.2915333,0.00022521,7]
[365153025,1749498635982,-166.98297135,0.00022557,2]
[365153026,1749498635992,-1402.2915333,0.00022624,7]
[365153027,1749498636001,-2380.45724693,0.00022662,2]
[365153028,1749498636011,-1402.2915333,0.00022728,7]
[365153029,1749498636021,-674.15,0.00022738,4]
[365153030,1749498636030,-460.0,0.00022738,4]
[365153031,1749498636040,-460.0,0.00022738,4]
[365153032,1749498636049,-596.62,0.00022738,4]
[365153033,1749498636060,-537.0,0.00022738,4]
[365153034,1749498636071,-885.92,0.00022738,4]
[365153035,1749498636081,-460.0,0.00022738,4]
[365153036,1749498636091,-2130.73,0.00022738,4]
[365153037,1749498636101,-747.12,0.00022738,4]
[365153038,1749498636111,-460.0,0.00022739,4]
[365153039,1749498636121,-460.0,0.00022739,2]
[365153040,1749498636130,-270.0,0.00022739,4]
[365153041,1749498636140,-460.0,0.00022739,4]
[365153042,1749498636150,-417.19569346,0.00022739,4]
[365153043,1749498636160,-460.0,0.00022739,4]
[365153044,1749498636172,-1022.01,0.00022739,4]
[365153045,1749498636183,-1579.35,0.00022739,4]
[365153046,1749498636192,-1257.22,0.00022739,4]
[365153047,1749498636202,-582.38,0.00022739,4]
[365153048,1749498636211,-460.0,0.00022739,4]
[365153049,1749498636220,-460.0,0.00022739,4]
[365153050,1749498636230,-1377.98,0.00022739,4]
[365153051,1749498636239,-668.98,0.00022739,4]
[365153052,1749498636250,-460.0,0.00022739,4]
[365153053,1749498636259,-460.0,0.00022739,4]
[365153054,1749498636269,-460.0,0.00022739,4]
[365153055,1749498636279,-460.0,0.00022739,4]
[365153056,1749498636289,-460.0,0.00022739,4]
[365153057,1749498636299,-460.0,0.00022739,4]
[365153058,1749498636309,-1453.8,0.00022739,4]
[365153059,1749498636318,-10022.59,0.00022739,4]
[365153060,1749498636328,-460.0,0.00022739,4]
[365153061,1749498636337,-460.0,0.00022739,4]
[365153062,1749498636347,-632.61,0.00022739,4]
[365153063,1749498636356,-1517.16,0.00022739,4]
[365153064,1749498636366,-460.0,0.00022739,4]
[365153065,1749498636375,-1447.19,0.00022739,4]
[365153066,1749498636385,-729.7030954,0.0002274,2]
[365153067,1749498636394,-1402.2915333,0.00022831,8]
[365153068,1749498636403,-151.0,0.0002284,7]
[365153069,1749498636414,-151.0,0.0002284,7]
[365153070,1749498636423,-151.0,0.0002284,7]
[365153071,1749498636435,-185.465959,0.0002284,7]
[365153072,1749498636444,-1402.2915333,0.00022934,8]
[365153073,1749498636453,-352.10244812,0.00022943,2]
[365153074,1749498636463,-420.0,0.00022943,2]
[365153075,1749498636472,-207.0,0.0002297,2]
[365153076,1749498636482,-674.15,0.00023012,4]
[365153077,1749498636491,-460.0,0.00023012,4]
[365153078,1749498636501,-460.0,0.00023012,4]
[365153079,1749498636511,-596.62,0.00023012,4]
[365153080,1749498636520,-537.0,0.00023012,4]
[365153081,1749498636530,-885.92,0.00023012,4]
[365153082,1749498636539,-460.0,0.00023012,4]
[365153083,1749498636549,-2130.73,0.00023012,4]
[365153084,1749498636559,-747.12,0.00023012,4]
[365153085,1749498636568,-460.0,0.00023013,4]
[365153086,1749498636578,-460.0,0.00023013,2]
[365153087,1749498636588,-431.295488,0.00023013,4]
[365153088,1749498636597,-460.0,0.00023013,4]
[365153089,1749498636607,-1022.01,0.00023013,4]
[365153090,1749498636617,-1579.35,0.00023013,4]
[365153091,1749498636626,-1257.22,0.00023013,4]
[365153092,1749498636637,-582.38,0.00023013,4]
[365153093,1749498636647,-460.0,0.00023013,4]
[365153094,1749498636656,-460.0,0.00023013,4]
[365153095,1749498636666,-1377.98,0.00023013,4]
[365153096,1749498636675,-668.98,0.00023013,4]
[365153097,1749498636685,-460.0,0.00023013,4]
[365153098,1749498636694,-434.25206632,0.00023013,4]
[365153099,1749498636703,-460.0,0.00023013,4]
[365153100,1749498636713,-218.02408389,0.00023013,4]
[365153101,1749498636723,-460.0,0.00023013,4]
[365153102,1749498636733,-460.0,0.00023013,4]
[365153103,1749498636743,-1453.8,0.00023013,4]
[365153104,1749498636754,-10022.59,0.00023013,4]
[365153105,1749498636764,-460.0,0.00023013,4]
[365153106,1749498636774,-172.77220875,0.00023013,4]
[365153107,1749498636797,-287.22779125,0.00023013,4]
[365153108,1749498636808,-205.69266086,0.00023013,4]
[365153151,1749498638165,-160.0,0.00021726,2]
[365153153,1749498638179,-426.91733914,0.00023013,4]
[365153155,1749498638190,-1517.16,0.00023013,4]
[365153158,1749498638201,-460.0,0.00023013,4]
[365153160,1749498638212,-1447.19,0.00023013,4]
[365153162,1749498638221,-1402.2915333,0.00023038,8]
[365153164,1749498638230,-500.0,0.00023056,2]
[365153166,1749498638240,-500.0,0.00023056,2]
[365153168,1749498638250,-505.79564037,0.00023056,2]
[365153170,1749498638261,-500.0,0.00023056,2]
[365153172,1749498638270,-500.0,0.0002306,2]
[365153174,1749498638280,-501.09580603,0.0002306,2]
[365153176,1749498638290,-152.72517312,0.0002306,2]
[365153178,1749498638300,-500.0,0.00023064,2]
[365153180,1749498638309,-501.40643246,0.00023064,2]
[365153182,1749498638318,-500.0,0.00023064,2]
[365153183,1749498638327,-501.25736118,0.00023064,2]
[365153185,1749498638337,-644.27040841,0.00023064,2]
[365153187,1749498638346,-501.29367668,0.00023064,2]
[365153189,1749498638356,-500.0,0.00023064,2]
[365153192,1749498638366,-500.0,0.00023064,2]
[365153193,1749498638375,-500.0,0.00023064,2]
[365153196,1749498638385,-500.0,0.00023064,2]
[365153198,1749498638395,-425.06371178,0.00023064,2]
[365153226,1749498640471,-460.0,0.00021095,4]
[365153227,1749498640481,-390.04192282,0.00021095,4]
[365153228,1749498640494,-344.31807718,0.00021095,4]
[365153229,1749498640504,-38.27192282,0.00021369,4]
[365153633,1749498646251,-421.72807718,0.00021369,4]
[365153635,1749498646266,-450.40790678,0.00021369,4]
[365153807,1749499142872,166.12604,0.00013699,2]
[365153851,1749499655389,364.43435074,0.000173,2]
[365153908,1749499832457,-150.0,0.000189,2]
[365153910,1749499832467,-245.75214016,0.0001938,2]
[365153912,1749499832477,-3263.5880856,0.00019797,2]
[365153914,1749499832486,-249.0,0.00020231,2]
[365153916,1749499832495,-305.2603821,0.00020232,2]
[365153918,1749499832505,-500.0,0.00020232,2]
[365153920,1749499832515,-500.0,0.00020232,2]
[365153922,1749499832527,-500.0,0.00020232,2]
[365153924,1749499832535,-500.0,0.00020232,2]
[365153926,1749499832545,-500.0,0.00020232,2]
[365153928,1749499832555,-500.0,0.00020232,2]
[365153930,1749499832566,-500.0,0.00020232,2]
[365153932,1749499832576,-500.0,0.00020232,2]
[365153934,1749499832585,-500.0,0.00020232,2]
[365153936,1749499832597,-500.0,0.00020232,2]
[365153938,1749499832607,-500.0,0.00020232,2]
[365153940,1749499832616,-498.09061439,0.00020232,2]
[365153942,1749499832626,-9632.20935076,0.00020232,2]
[365153944,1749499832635,-317.28565661,0.00020457,2]
[365153945,1749499832644,-2386.27049843,0.000209,4]
[365153946,1749499832654,-4098.79962251,0.00021,7]
[365153948,1749499832663,-2386.27049823,0.00021038,4]
[365153949,1749499832673,-460.0,0.00021095,4]
[365153951,1749499832683,-277.9308021,0.00021095,4]
[365153953,1749499832693,-346.00909416,0.00021095,4]
[365153996,1749499838323,-113.99090584,0.00021095,4]
[365153997,1749499838333,-212.916,0.00021095,2]
[365153998,1749499838343,-460.0,0.00021095,4]
[365153999,1749499838353,-460.0,0.00021095,4]
[365154000,1749499838363,-336.80177257,0.00021095,4]
[365154001,1749499838374,-400.0,0.00021095,4]
[365154002,1749499838384,-400.0,0.00021095,4]
[365154003,1749499838394,-460.0,0.00021095,2]
[365154004,1749499838404,-380.0,0.00021095,4]
[365154005,1749499838416,-460.0,0.00021095,4]
[365154006,1749499838427,-500.0,0.00021095,4]
[365154007,1749499838438,-500.0,0.00021095,4]
[365154008,1749499838449,-460.0,0.00021095,4]
[365154009,1749499838459,-400.0,0.00021095,4]
[365154010,1749499838469,-460.0,0.00021095,4]
[365154011,1749499838478,-590.95651065,0.00021095,4]
[365154012,1749499838488,-380.0,0.00021095,4]
[365154013,1749499838498,-460.0,0.00021095,4]
[365154014,1749499838507,-400.0,0.00021095,4]
[365154015,1749499838517,-460.0,0.00021095,4]
[365154016,1749499838532,-300.0,0.00021095,4]
[365154017,1749499838542,-440.0,0.00021095,4]
[365154018,1749499838553,-570.98783582,0.00021095,4]
[365154019,1749499838564,-400.0,0.00021095,4]
[365154020,1749499838577,-460.0,0.00021095,4]
[365154021,1749499838592,-460.0,0.00021095,4]
[365154022,1749499838602,-460.0,0.00021095,4]
[365154023,1749499838620,-330.0,0.00021095,4]
[365154024,1749499838633,-460.0,0.00021095,4]
[365154025,1749499838644,-460.0,0.00021095,4]
[365154026,1749499838654,-1008.8,0.00021095,4]
[365154027,1749499838666,-460.0,0.00021095,4]
[365154028,1749499838676,-1148.53,0.00021095,4]
[365154029,1749499838687,-460.0,0.00021095,4]
[365154030,1749499838696,-1639.75,0.00021095,4]
[365154031,1749499838707,-460.0,0.00021095,4]
[365154032,1749499838718,-460.0,0.00021095,4]
[365154033,1749499838728,-193.29837282,0.00021095,4]
[365154034,1749499838739,-547.29,0.00021095,4]
[365154035,1749499838748,-460.0,0.00021095,4]
[365154036,1749499838758,-460.0,0.00021095,4]
[365154037,1749499838768,-460.0,0.00021095,4]
[365154038,1749499838777,-460.0,0.00021095,4]
[365154039,1749499838787,-460.0,0.00021095,4]
[365154040,1749499838797,-596.05,0.00021095,4]
[365154041,1749499838808,-460.0,0.00021095,4]
[365154042,1749499838818,-460.0,0.00021095,4]
[365154043,1749499838827,-460.0,0.00021095,4]
[365154044,1749499838837,-460.0,0.00021095,4]
[365154045,1749499838848,-460.0,0.00021095,4]
[365154046,1749499838857,-340.0,0.00021095,4]
[365154047,1749499838867,-460.0,0.00021095,4]
[365154048,1749499838878,-661.15,0.00021095,4]
[365154049,1749499838888,-460.0,0.00021095,4]
[365154050,1749499838897,-460.0,0.00021095,4]
[365154051,1749499838907,-460.0,0.00021095,4]
[365154052,1749499838918,-248.09466874,0.00021095,4]
[365154053,1749499838927,-1246.28,0.00021095,4]
[365154054,1749499838938,-460.0,0.00021095,4]
[365154055,1749499838948,-460.0,0.00021095,4]
[365154056,1749499838957,-240.0,0.00021095,4]
[365154057,1749499838968,-460.0,0.00021095,4]
[365154058,1749499838978,-279.15417083,0.00021095,4]
[365154059,1749499838989,-460.0,0.00021095,4]
[365154060,1749499838999,-460.0,0.00021095,4]
[365154061,1749499839009,-424.03042737,0.00021095,4]
[365154062,1749499839019,-441.58155596,0.00021095,4]
[365154063,1749499839029,-460.0,0.00021095,4]
[365154064,1749499839039,-460.0,0.00021095,4]
[365154065,1749499839049,-460.0,0.00021095,4]
[365154066,1749499839059,-380.0,0.00021095,4]
[365154067,1749499839069,-375.0,0.00021095,4]
[365154068,1749499839080,-460.0,0.00021095,4]
[365154069,1749499839090,-440.0,0.00021095,4]
[365154070,1749499839099,-460.0,0.00021095,4]
[365154071,1749499839109,-460.0,0.00021095,4]
[365154072,1749499839119,-460.0,0.00021095,4]
[365154073,1749499839129,-4969.54661323,0.00021095,4]
[365154074,1749499839143,-4785.04338677,0.00021095,4]
[365154075,1749499839154,-533.38,0.00021095,4]
[365154076,1749499839165,-460.0,0.00021095,4]
[365154077,1749499839175,-1374.28,0.00021095,4]
[365154078,1749499839185,-460.0,0.00021095,4]
[365154079,1749499839194,-1461.37,0.00021095,4]
[365154080,1749499839204,-1373.98,0.00021095,4]
[365154081,1749499839214,-460.0,0.00021095,4]
[365154082,1749499839224,-500.0,0.00021095,4]
[365154083,1749499839234,-500.0,0.00021095,4]
[365154084,1749499839243,-500.0,0.00021095,4]
[365154085,1749499839253,-460.0,0.00021095,4]
[365154086,1749499839263,-2386.27049823,0.00021176,4]
[365154087,1749499839273,-2386.27049823,0.00021314,5]
[365154088,1749499839283,-500.0,0.00021367,4]
[365154089,1749499839292,-460.0,0.00021367,4]
[365154090,1749499839302,-440.0,0.00021367,4]
[365154091,1749499839312,-742.29,0.00021367,4]
[365154092,1749499839321,-460.0,0.00021367,4]
[365154093,1749499839332,-657.67,0.00021367,4]
[365154094,1749499839341,-460.0,0.00021367,4]
[365154095,1749499839351,-1008.2,0.00021367,4]
[365154096,1749499839361,-2138.63,0.00021367,4]
[365154097,1749499839370,-233.98697092,0.00021368,4]
[365154098,1749499839381,-626.12,0.00021368,4]
[365154099,1749499839390,-500.0,0.00021368,4]
[365154100,1749499839400,-500.0,0.00021368,4]
[365154101,1749499839410,-460.0,0.00021369,4]
[365154102,1749499839420,-460.0,0.00021369,4]
[365154103,1749499839430,-460.0,0.00021369,4]
[365154104,1749499839440,-460.0,0.00021369,4]
[365154105,1749499839450,-460.0,0.00021369,2]
[365154106,1749499839460,-380.0,0.00021369,4]
[365154107,1749499839470,-320.0,0.00021369,4]
[365154108,1749499839479,-460.0,0.00021369,4]
[365154109,1749499839489,-410.0,0.00021369,4]
[365154110,1749499839499,-460.0,0.00021369,4]
[365154111,1749499839510,-339.61450717,0.00021369,4]
[365154112,1749499839523,-448.74312294,0.00021369,4]
[365154113,1749499839533,-460.0,0.00021369,4]
[365154114,1749499839543,-460.0,0.00021369,4]
[365154115,1749499839554,-443.25531892,0.00021369,4]
[365154116,1749499839565,-1008.8,0.00021369,4]
[365154117,1749499839575,-460.0,0.00021369,4]
[365154118,1749499839584,-1148.53,0.00021369,4]
[365154119,1749499839594,-460.0,0.00021369,4]
[365154120,1749499839605,-1639.75,0.00021369,4]
[365154121,1749499839615,-460.0,0.00021369,4]
[365154122,1749499839625,-460.0,0.00021369,4]
[365154123,1749499839636,-547.29,0.00021369,4]
[365154124,1749499839645,-460.0,0.00021369,4]
[365154125,1749499839655,-460.0,0.00021369,4]
[365154126,1749499839666,-365.8611539,0.00021369,4]
[365154127,1749499839680,-460.0,0.00021369,4]
[365154128,1749499839691,-596.05,0.00021369,4]
[365154129,1749499839701,-460.0,0.00021369,4]
[365154130,1749499839711,-460.0,0.00021369,4]
[365154131,1749499839720,-380.0,0.00021369,4]
[365154132,1749499839730,-460.0,0.00021369,4]
[365154133,1749499839741,-460.0,0.00021369,4]
[365154134,1749499839751,-460.0,0.00021369,4]
[365154135,1749499839762,-661.15,0.00021369,4]
[365154136,1749499839771,-460.0,0.00021369,4]
[365154137,1749499839781,-460.0,0.00021369,4]
[365154138,1749499839791,-460.0,0.00021369,4]
[365154139,1749499839800,-1246.28,0.00021369,4]
[365154140,1749499839809,-460.0,0.00021369,4]
[365154141,1749499839818,-460.0,0.00021369,4]
[365154142,1749499839828,-460.0,0.00021369,4]
[365154143,1749499839838,-460.0,0.00021369,4]
[365154144,1749499839847,-460.0,0.00021369,4]
[365154145,1749499839856,-460.0,0.00021369,4]
[365154146,1749499839865,-460.0,0.00021369,4]
[365154147,1749499839875,-460.0,0.00021369,4]
[365154148,1749499839884,-460.0,0.00021369,4]
[365154149,1749499839893,-420.0,0.00021369,4]
[365154150,1749499839902,-9754.59,0.00021369,4]
[365154152,1749499839911,-440.0,0.00021369,4]
[365154153,1749499839920,-533.38,0.00021369,4]
[365154154,1749499839930,-334.46709446,0.00021369,4]
[365154155,1749499839939,-1374.28,0.00021369,4]
[365154156,1749499839948,-460.0,0.00021369,4]
[365154157,1749499839957,-1461.37,0.00021369,4]
[365154158,1749499839967,-1373.98,0.00021369,4]
[365154159,1749499839976,-440.0,0.00021369,4]
[365154160,1749499839985,-460.0,0.00021369,4]
[365154162,1749499839995,-2386.27049823,0.00021452,5]
[365154163,1749499840004,-770.52,0.00021455,2]
[365154164,1749499840013,-500.0,0.00021524,2]
[365154165,1749499840022,-614.29939949,0.00021543,2]
[365154166,1749499840032,-500.0,0.00021546,2]
[365154167,1749499840041,-2386.27049823,0.0002159,5]
[365154168,1749499840176,-460.0,0.00021641,4]
[365154169,1749499840185,-742.29,0.00021641,4]
[365154170,1749499840195,-460.0,0.00021641,4]
[365154171,1749499840205,-657.67,0.00021641,4]
[365154172,1749499840214,-460.0,0.00021641,4]
[365154173,1749499840224,-1008.2,0.00021641,4]
[365154174,1749499840234,-2138.63,0.00021641,4]
[365154175,1749499840244,-356.41287216,0.00021641,4]
[365154176,1749499840254,-626.12,0.00021642,4]
[365154177,1749499840266,-460.0,0.00021643,4]
[365154178,1749499840276,-460.0,0.00021643,4]
[365154179,1749499840286,-460.0,0.00021643,4]
[365154180,1749499840296,-460.0,0.00021643,2]
[365154182,1749499840306,-460.0,0.00021643,4]
[365154183,1749499840316,-460.0,0.00021643,4]
[365154184,1749499840326,-460.0,0.00021643,4]
[365154186,1749499840335,-460.0,0.00021643,4]
[365154187,1749499840345,-1008.8,0.00021643,4]
[365154188,1749499840355,-1148.53,0.00021643,4]
[365154189,1749499840365,-460.0,0.00021643,4]
[365154190,1749499840376,-1639.75,0.00021643,4]
[365154191,1749499840386,-460.0,0.00021643,4]
[365154192,1749499840396,-460.0,0.00021643,4]
[365154193,1749499840405,-547.29,0.00021643,4]
[365154194,1749499840415,-256.38224862,0.00021643,4]
[365154196,1749499840425,-460.0,0.00021643,4]
[365154197,1749499840435,-596.05,0.00021643,4]
[365154198,1749499840445,-460.0,0.00021643,4]
[365154200,1749499840455,-352.12,0.00021643,4]
[365154201,1749499840465,-460.0,0.00021643,4]
[365154203,1749499840474,-460.0,0.00021643,4]
[365154204,1749499840484,-460.0,0.00021643,4]
[365154206,1749499840494,-661.15,0.00021643,4]
[365154209,1749499840504,-270.0,0.00021643,4]
[365154212,1749499840514,-460.0,0.00021643,4]
[365154214,1749499840527,-460.0,0.00021643,4]
[365154216,1749499840537,-1246.28,0.00021643,4]
[365154218,1749499840547,-460.0,0.00021643,4]
[365154220,1749499840556,-460.0,0.00021643,4]
[365154222,1749499840566,-460.0,0.00021643,4]
[365154223,1749499840576,-460.0,0.00021643,4]
[365154224,1749499840586,-460.0,0.00021643,4]
[365154226,1749499840597,-460.0,0.00021643,4]
[365154228,1749499840607,-460.0,0.00021643,4]
[365154229,1749499840617,-460.0,0.00021643,4]
[365154231,1749499840627,-9754.59,0.00021643,4]
[365154232,1749499840636,-533.38,0.00021643,4]
[365154234,1749499840646,-1374.28,0.00021643,4]
[365154235,1749499840656,-460.0,0.00021643,4]
[365154236,1749499840666,-1461.37,0.00021643,4]
[365154237,1749499840675,-1373.98,0.00021643,4]
[365154238,1749499840685,-460.0,0.00021643,4]
[365154239,1749499840695,-500.0,0.00021657,2]
[365154240,1749499840704,-435.89488015,0.00021657,2]
[365154241,1749499840714,-510.03104256,0.00021668,2]
[365154242,1749499840724,-250.9999159,0.00021701,2]
[365154243,1749499840734,-156.587,0.00021701,2]
[365154244,1749499840744,-16000.0,0.00021701,2]
[365154245,1749499840753,-6541.7275605,0.00021701,2]
[365154246,1749499840763,-160.0,0.00021712,2]
[365154247,1749499840772,-160.0,0.00021712,2]
[365154248,1749499840782,-11856.04170836,0.00021714,2]
[365154249,1749499840791,-160.0,0.00021714,2]
[365154250,1749499840800,-229.64266968,0.00021714,2]
[365154251,1749499840810,-424.05420114,0.00021714,2]
[365154252,1749499840819,-160.0,0.00021714,2]
[365154253,1749499840828,-842.5625,0.00021714,2]
[365154254,1749499840838,-213.08899333,0.00021714,2]
[365154255,1749499840847,-834.7738823,0.00021714,2]
[365154256,1749499840856,-500.0,0.00021725,2]
[365154257,1749499840865,-2386.27049823,0.00021728,5]
[365154258,1749499840875,-2386.27049823,0.00021866,6]
[365154259,1749499840884,-460.0,0.00021915,4]
[365154260,1749499840893,-742.29,0.00021915,4]
[365154261,1749499840902,-460.0,0.00021915,4]